bitfinex/quotes_BTCUSD_20230114
["timestamp","ask_amount","ask_price","bid_price","bid_amount"]
[1673669022635,0.62772556,20976.0,20975.0,1.49591927]
[1673669022882,0.62772556,20976.0,20975.0,1.21355585]
[1673669023134,0.62772556,20976.0,20975.0,0.86064122]
[1673669023413,0.62772556,20976.0,20975.0,1.21374498]
[1673669024753,0.62772556,20976.0,20975.0,1.4963732]
[1673669025013,0.62772556,20976.0,20975.0,1.17896189]
[1673669025279,0.62762484,20976.0,20975.0,1.03785074]
[1673669025819,0.62762484,20976.0,20975.0,0.82585813]
[1673669026349,0.62762484,20976.0,20975.0,1.17896189]
[1673669026611,0.62762484,20976.0,20975.0,1.17901594]
[1673669026865,0.62762484,20976.0,20975.0,1.1790071]
[1673669028179,0.62762484,20976.0,20975.0,0.89633475]
[1673669029008,0.62762484,20976.0,20975.0,0.54323099]
[1673669029826,0.62682484,20976.0,20975.0,0.54323099]
[1673669031145,0.62682484,20976.0,20975.0,0.86064122]
[1673669032150,0.62682484,20976.0,20975.0,1.21388603]
[1673669033721,0.62682484,20976.0,20975.0,0.86064122]
[1673669034764,0.62682484,20976.0,20975.0,0.89650114]
[1673669035274,0.62682484,20976.0,20975.0,0.83402815]
[1673669036311,0.62682484,20976.0,20975.0,0.90162978]
[1673669036796,0.62682484,20976.0,20975.0,0.54835963]
[1673669037044,0.62682484,20976.0,20975.0,0.90158523]
[1673669037302,0.62682484,20976.0,20975.0,0.54835963]
[1673669038598,0.62682484,20976.0,20975.0,0.86576986]
[1673669039673,0.62682484,20976.0,20975.0,1.21890098]
[1673669039932,0.62682484,20976.0,20975.0,0.86576986]
[1673669040961,0.62682484,20976.0,20975.0,1.2188999]
[1673669041222,0.62682484,20976.0,20975.0,1.21887907]
[1673669041487,0.62682484,20976.0,20975.0,0.86576986]
[1673669041763,0.62682484,20976.0,20975.0,1.2188963]
[1673669042053,0.62682484,20976.0,20975.0,0.86576986]
[1673669042784,0.62682484,20976.0,20975.0,1.21894533]
[1673669043037,0.62682484,20976.0,20975.0,0.86576986]
[1673669048200,0.62682484,20976.0,20975.0,0.54835963]
[1673669048675,0.62682484,20976.0,20975.0,0.90157872]
[1673669049191,0.62682484,20976.0,20975.0,0.54835963]
[1673669049984,0.62682484,20976.0,20975.0,0.83396213]
[1673669050240,0.77321665,20976.0,20975.0,1.11654364]
[1673669051014,0.77321665,20976.0,20975.0,0.49853203]
[1673669052094,0.77321665,20976.0,20975.0,0.97529003]
[1673669052347,0.77312422,20976.0,20975.0,0.76333951]
[1673669052613,0.77312422,20976.0,20975.0,1.11654364]
[1673669052879,0.81745836,20976.0,20975.0,0.63949951]
[1673669053185,0.81745836,20976.0,20975.0,0.1451672]
[1673669053186,1.26438174,20976.0,20975.0,0.1451672]
[1673669053436,2.5043326,20976.0,20975.0,0.004]
[1673669053668,2.77420265,20976.0,20975.0,0.004]
[1673669053933,3.17878368,20976.0,20972.0,0.1411672]
[1673669054198,0.1273,20973.0,20970.0,0.352918]
[1673669054483,0.1266,20971.0,20969.0,0.01812719]
[1673669054725,0.213047,20970.0,20969.0,0.01812719]
[1673669055239,0.213047,20970.0,20969.0,0.01712719]
[1673669056047,0.299047,20970.0,20969.0,0.02612719]
[1673669057384,0.48660663,20970.0,20969.0,0.02612719]
[1673669058147,0.299047,20970.0,20969.0,0.02612719]
[1673669058403,0.425547,20970.0,20969.0,0.02612719]
[1673669058685,0.82327437,20970.0,20969.0,0.02112719]
[1673669058938,1.102418,20970.0,20969.0,0.02112719]
[1673669059199,0.47777653,20970.0,20969.0,0.02112719]
[1673669062331,0.47771653,20970.0,20969.0,0.02112719]
[1673669063912,0.26472953,20970.0,20969.0,0.02112719]
[1673669064666,0.58538653,20970.0,20969.0,0.02112719]
[1673669064966,0.086,20970.0,20969.0,0.02112719]
[1673669065239,0.086,20970.0,20969.0,0.0828333]
[1673669065486,0.086,20970.0,20969.0,0.55593265]
[1673669065974,0.086,20970.0,20969.0,0.55599378]
[1673669066268,0.15705266,20973.0,20969.0,0.54699378]
[1673669066553,0.079,20970.0,20969.0,0.65568968]
[1673669066810,0.079,20970.0,20969.0,0.49808232]
[1673669067098,1.13941891,20975.0,20969.0,1.14834181]
[1673669067389,0.79887392,20976.0,20970.0,0.0996959]
[1673669067660,0.15407685,20975.0,20971.0,1.10463817]
[1673669067932,0.15426685,20975.0,20971.0,1.10463817]
[1673669068184,0.15426685,20975.0,20971.0,0.52811227]
[1673669068185,0.3449928,20975.0,20971.0,0.52811227]
[1673669068448,0.15426685,20975.0,20971.0,0.52811227]
[1673669068704,0.35426685,20975.0,20971.0,0.62780817]
[1673669069009,0.35526685,20975.0,20971.0,0.54911227]
[1673669069286,0.15526685,20975.0,20971.0,0.54911227]
[1673669069565,0.15526685,20975.0,20971.0,0.64880817]
[1673669069824,0.15507685,20975.0,20971.0,0.51727002]
[1673669070402,0.15796231,20974.0,20971.0,0.61696592]
[1673669070685,0.15796231,20974.0,20971.0,0.51727002]
[1673669071176,0.15796231,20974.0,20971.0,0.49627002]
[1673669071414,0.15896231,20974.0,20972.0,0.00011628]
[1673669071678,0.15896231,20974.0,20972.0,0.476811]
[1673669072492,0.1273,20974.0,20971.0,0.47683]
[1673669072710,0.48282076,20973.0,20972.0,0.004]
[1673669073723,0.68282076,20973.0,20972.0,0.004]
[1673669074447,0.73382076,20973.0,20972.0,0.004]
[1673669074671,0.53382076,20973.0,20972.0,0.004]
[1673669076106,0.21316376,20973.0,20972.0,0.004]
[1673669077270,0.051,20973.0,20972.0,0.480826]
[1673669077535,0.051,20973.0,20972.0,0.51222596]
[1673669079100,0.051,20973.0,20972.0,0.51210968]
[1673669082786,0.051,20973.0,20972.0,0.51222596]
[1673669084310,0.12666,20973.0,20972.0,0.004]
[1673669084568,0.24480576,20973.0,20970.0,0.4755445]
[1673669084833,0.43553171,20973.0,20970.0,0.6167117]
[1673669085095,0.43553171,20973.0,20970.0,0.4755445]
[1673669085361,0.24480576,20973.0,20970.0,0.4755445]
[1673669085620,0.19380576,20973.0,20970.0,0.4755445]
[1673669086153,0.20080576,20973.0,20971.0,0.00011629]
[1673669086923,0.20080576,20973.0,20970.0,1.1855807]
[1673669087201,0.20080576,20973.0,20971.0,0.00011629]
[1673669087438,0.20080576,20973.0,20972.0,0.953652]
[1673669087702,0.16632846,20974.0,20972.0,0.953652]
[1673669087948,0.001,20973.0,20972.0,0.953652]
[1673669088475,0.16632846,20974.0,20972.0,0.953652]
[1673669088744,0.62673241,20976.0,20972.0,0.953652]
[1673669089009,0.81994952,20976.0,20972.0,1.44312816]
[1673669089272,0.81994952,20976.0,20972.0,1.44712816]
[1673669089536,0.054,20973.0,20972.0,1.44312816]
[1673669089838,0.054,20973.0,20972.0,1.20226506]
[1673669090303,0.054,20973.0,20972.0,1.23623351]
[1673669090562,0.054,20973.0,20972.0,1.91118884]
[1673669090836,0.68092241,20976.0,20972.0,1.95080733]
[1673669091138,0.056,20973.0,20972.0,1.5012991]
[1673669091349,0.056,20973.0,20972.0,1.083852]
[1673669091602,0.056,20973.0,20972.0,0.957652]
[1673669091872,0.62692241,20976.0,20973.0,0.03284794]
[1673669092140,0.77927187,20976.0,20974.0,0.47678]
[1673669092447,0.18814993,20975.0,20974.0,0.47678]
[1673669092667,0.18814993,20975.0,20973.0,0.50962894]
[1673669092668,0.2,20974.0,20973.0,0.50962894]
[1673669092918,0.18814993,20975.0,20973.0,0.50962894]
[1673669093185,0.18814993,20975.0,20972.0,0.84440642]
[1673669093186,0.18814993,20975.0,20972.0,0.63345817]
[1673669093439,0.51454993,20975.0,20972.0,0.61745817]
[1673669093657,0.15601594,20974.0,20972.0,0.61614467]
[1673669094152,0.15601594,20974.0,20972.0,0.4755125]
[1673669094654,0.15601594,20974.0,20972.0,0.4895125]
[1673669094934,0.15601594,20974.0,20972.0,0.63014467]
[1673669095185,0.15601594,20974.0,20972.0,0.4755125]
[1673669095444,0.15701594,20974.0,20972.0,0.4895125]
[1673669095960,0.15701594,20974.0,20972.0,0.63026095]
[1673669096728,0.15701594,20974.0,20972.0,0.014]
[1673669096987,0.17462943,20973.0,20972.0,0.014]
[1673669097248,0.17462943,20973.0,20970.0,0.14072297]
[1673669097249,0.76598295,20973.0,20970.0,0.14072297]
[1673669097507,0.76598295,20973.0,20968.0,0.35180743]
[1673669097508,0.76598295,20973.0,20968.0,0.14072297]
[1673669097509,0.60371495,20972.0,20968.0,0.14072297]
[1673669097768,1.66508895,20971.0,20967.0,0.14537404]
[1673669098029,1.66508895,20971.0,20967.0,0.00465107]
[1673669098030,0.1266,20968.0,20967.0,0.00465107]
[1673669098286,0.63798295,20968.0,20967.0,0.00465107]
[1673669098553,0.647257,20968.0,20967.0,0.00465107]
[1673669099081,0.79539609,20968.0,20967.0,0.01265107]
[1673669099598,0.46879609,20968.0,20967.0,0.01265107]
[1673669099902,0.46879609,20968.0,20967.0,0.00465107]
[1673669100226,0.56479609,20968.0,20967.0,0.01265107]
[1673669101495,0.56392309,20968.0,20967.0,0.01265107]
[1673669101988,1.019201,20968.0,20967.0,0.01265107]
[1673669102245,1.145701,20968.0,20967.0,0.01265107]
[1673669102518,1.76192008,20968.0,20967.0,0.01265107]
[1673669102849,1.345701,20968.0,20967.0,0.01265107]
[1673669103044,1.7742524,20968.0,20967.0,0.01265107]
[1673669103303,1.345701,20968.0,20967.0,0.01265107]
[1673669107525,0.2,20967.0,20965.0,0.00302077]
[1673669107789,0.339389,20966.0,20965.0,0.00302077]
[1673669109109,0.410389,20966.0,20965.0,0.01002077]
[1673669109371,0.59883363,20966.0,20965.0,0.01002077]
[1673669109595,1.27079563,20966.0,20965.0,0.01002077]
[1673669109853,1.082351,20966.0,20965.0,0.00502077]
[1673669110113,1.22690269,20966.0,20965.0,0.00502077]
[1673669110385,1.082351,20966.0,20965.0,0.00502077]
[1673669110671,1.27222404,20966.0,20965.0,0.00502077]
[1673669110925,1.082351,20966.0,20965.0,2.077e-05]
[1673669111178,1.26104505,20966.0,20965.0,2.077e-05]
[1673669116242,0.78408305,20966.0,20965.0,2.077e-05]
[1673669117530,0.65768305,20966.0,20965.0,2.077e-05]
[1673669118068,1.75027864,20966.0,20965.0,2.077e-05]
[1673669118346,1.55955269,20966.0,20965.0,2.077e-05]
[1673669118640,1.11461659,20966.0,20965.0,2.077e-05]
[1673669118910,0.955951,20966.0,20965.0,2.077e-05]
[1673669119429,1.10611505,20966.0,20965.0,2.077e-05]
[1673669120501,0.955951,20966.0,20965.0,2.077e-05]
[1673669120750,1.1020186,20966.0,20965.0,2.077e-05]
[1673669121537,0.278989,20966.0,20965.0,2.077e-05]
[1673669122058,0.271,20966.0,20965.0,2.077e-05]
[1673669122804,0.591659,20966.0,20965.0,2.077e-05]
[1673669123330,0.391659,20966.0,20965.0,2.077e-05]
[1673669123877,0.591659,20966.0,20965.0,2.077e-05]
[1673669125402,0.74299396,20966.0,20965.0,2.077e-05]
[1673669131018,1.21995596,20966.0,20965.0,2.077e-05]
[1673669133137,0.39157694,20966.0,20965.0,0.09971667]
[1673669133406,0.07091794,20966.0,20965.0,0.50725552]
[1673669134491,0.14238683,20969.0,20965.0,0.50725552]
[1673669134492,0.14238683,20969.0,20965.0,0.50723475]
[1673669134749,0.006,20966.0,20965.0,0.19494565]
[1673669135009,0.14201231,20968.0,20965.0,0.03024975]
[1673669135285,0.006,20966.0,20965.0,0.09524975]
[1673669135611,0.676885,20970.0,20965.0,0.03024975]
[1673669135613,0.009,20969.0,20965.0,0.47810132]
[1673669135859,0.009,20969.0,20965.0,1.05587425]
[1673669135860,6e-05,20969.0,20965.0,1.05587425]
[1673669136111,0.009,20968.0,20967.0,0.14078285]
[1673669136613,0.009,20968.0,20967.0,0.35177703]
[1673669136875,6e-05,20969.0,20967.0,0.14078285]
[1673669137120,0.00606,20969.0,20967.0,0.65147293]
[1673669137367,0.00606,20969.0,20968.0,0.35177703]
[1673669137619,0.00606,20969.0,20968.0,0.82861153]
[1673669137863,6e-05,20969.0,20968.0,0.61761735]
[1673669138148,0.079,20969.0,20968.0,0.85339333]
[1673669138350,0.079,20969.0,20968.0,0.85935958]
[1673669138590,0.085,20969.0,20968.0,0.6493654]
[1673669138843,0.085,20969.0,20968.0,0.51007435]
[1673669139095,0.085,20969.0,20968.0,0.03315735]
[1673669140609,0.085,20969.0,20968.0,0.03327365]
[1673669141113,0.085,20969.0,20968.0,0.03315735]
[1673669141625,0.085,20969.0,20968.0,0.03327365]
[1673669142873,0.085,20969.0,20968.0,0.51019065]
[1673669144864,0.085,20969.0,20968.0,0.51007435]
[1673669146354,0.085,20969.0,20968.0,0.03315735]
[1673669148367,0.23574756,20969.0,20968.0,0.001]
[1673669149144,0.24408358,20969.0,20968.0,0.001]
[1673669149418,0.56474258,20969.0,20968.0,0.001]
[1673669149654,0.605659,20969.0,20968.0,0.001]
[1673669150399,1.082553,20969.0,20968.0,0.001]
[1673669151415,1.082553,20969.0,20968.0,0.00083689]
[1673669152171,1.68625469,20969.0,20968.0,0.00083689]
[1673669155141,1.209053,20969.0,20968.0,0.00083689]
[1673669155392,1.2326672,20969.0,20968.0,0.00083689]
[1673669156862,1.082553,20969.0,20968.0,0.00083689]
[1673669159615,1.26347369,20969.0,20968.0,0.00083689]
[1673669159869,1.082553,20969.0,20968.0,0.00083689]
[1673669160369,1.25612589,20969.0,20968.0,0.00083689]
[1673669160899,1.082553,20969.0,20968.0,0.00083689]
[1673669161660,1.2810094,20969.0,20968.0,0.00083689]
[1673669161949,1.26785742,20969.0,20968.0,0.00083689]
[1673669163123,1.23280549,20969.0,20968.0,0.00083689]
[1673669163377,1.03280549,20969.0,20968.0,0.00083689]
[1673669164611,1.23280549,20969.0,20968.0,0.00083689]
[1673669165351,1.082553,20969.0,20968.0,0.00083689]
[1673669166858,1.55975469,20969.0,20968.0,0.00083689]
[1673669167119,2.78345526,20969.0,20968.0,0.00083689]
[1673669167380,3.42485599,20969.0,20968.0,0.00083689]
[1673669167637,2.99755028,20969.0,20968.0,0.00083689]
[1673669168136,2.78345526,20969.0,20968.0,0.00083689]
[1673669168377,3.42469124,20969.0,20968.0,0.00083689]
[1673669168611,2.99755028,20969.0,20968.0,0.00083689]
[1673669168859,2.78310102,20969.0,20968.0,0.00083689]
[1673669169121,1.68635469,20969.0,20968.0,0.00083689]
[1673669171339,1.88675133,20969.0,20968.0,0.00083689]
[1673669171597,1.08294964,20969.0,20968.0,0.00083689]
[1673669174127,1.28294964,20969.0,20968.0,0.00083689]
[1673669174361,1.08294964,20969.0,20968.0,0.00083689]
[1673669175100,1.28294964,20969.0,20968.0,0.00083689]
[1673669175343,0.60605564,20969.0,20968.0,0.00083689]
[1673669176344,0.48539664,20969.0,20968.0,0.00083689]
[1673669176589,0.80605564,20969.0,20968.0,0.00083689]
[1673669178322,0.80605564,20969.0,20968.0,0.00074601]
[1673669178578,0.085,20969.0,20968.0,0.1356986]
[1673669178850,0.085,20969.0,20968.0,0.1633027]
[1673669179379,0.085,20969.0,20968.0,0.6402197]
[1673669180888,0.1483988,20971.0,20968.0,0.51217369]
[1673669181435,0.1483988,20971.0,20968.0,0.03525669]
[1673669181694,0.007,20969.0,20968.0,0.10325669]
[1673669181963,0.17931439,20972.0,20968.0,0.03525669]
[1673669182221,0.39076782,20971.0,20968.0,0.20295259]
[1673669182492,0.38376782,20971.0,20968.0,0.03525669]
[1673669182758,0.007,20969.0,20968.0,0.10325669]
[1673669183034,0.007,20969.0,20968.0,0.03525669]
[1673669183309,0.19076782,20971.0,20968.0,0.10325669]
[1673669183806,0.18376782,20971.0,20968.0,0.03525669]
[1673669184088,0.01432415,20973.0,20969.0,0.14075219]
[1673669184338,0.01432415,20973.0,20970.0,0.0996959]
[1673669184838,0.18076809,20973.0,20969.0,0.61764419]
[1673669185129,0.007,20971.0,20969.0,0.71734009]
[1673669185384,0.18076809,20973.0,20969.0,0.61764419]
[1673669185655,0.26076809,20973.0,20970.0,0.04252138]
[1673669186230,0.09432415,20973.0,20970.0,0.03452138]
[1673669186490,0.02032415,20973.0,20970.0,0.03452138]
[1673669186750,0.02032415,20973.0,20970.0,0.51139138]
[1673669187017,0.10032415,20973.0,20970.0,0.51939138]
[1673669188116,0.25389194,20973.0,20970.0,0.51939138]
[1673669188381,0.25389194,20973.0,20971.0,0.02887076]
[1673669189163,0.25389194,20973.0,20970.0,0.008]
[1673669189164,0.57712715,20973.0,20970.0,0.008]
[1673669189407,0.52164321,20972.0,20970.0,0.008]
[1673669189665,0.407114,20971.0,20968.0,0.03241514]
[1673669189916,0.320659,20970.0,20968.0,0.03241514]
[1673669190166,0.39072595,20971.0,20968.0,0.03241514]
[1673669190433,0.39072595,20971.0,20970.0,0.008]
[1673669190673,0.2,20971.0,20970.0,0.008]
[1673669190926,0.520659,20971.0,20966.0,0.61770019]
[1673669191179,0.19072595,20970.0,20966.0,0.50913419]
[1673669191424,0.19072595,20970.0,20968.0,0.068]
[1673669191425,0.19772595,20970.0,20968.0,0.068]
[1673669191647,0.007,20970.0,20968.0,0.068]
[1673669192401,0.85250454,20971.0,20966.0,0.03218619]
[1673669192655,1.51867484,20971.0,20966.0,0.21388209]
[1673669192940,0.51138495,20970.0,20964.0,0.8334205]
[1673669193189,0.59783995,20969.0,20968.0,0.068]
[1673669193452,0.38428771,20969.0,20964.0,0.60979233]
[1673669193721,0.51138495,20968.0,20966.0,0.082]
[1673669193999,0.407114,20967.0,20964.0,0.03309843]
[1673669194240,0.19072595,20967.0,20964.0,0.03309843]
[1673669194493,1.160792,20969.0,20964.0,0.03290843]
[1673669194745,1.52092367,20969.0,20964.0,0.13260433]
[1673669195002,0.320659,20968.0,20964.0,0.13260433]
[1673669195279,0.207114,20967.0,20966.0,0.082]
[1673669195533,1.32319772,20969.0,20964.0,0.03290843]
[1673669195778,0.320659,20968.0,20964.0,0.21460433]
[1673669196037,0.207114,20967.0,20964.0,0.11490843]
[1673669196295,0.19072595,20968.0,20964.0,0.03290843]
[1673669196552,0.14167089,20967.0,20964.0,0.03290843]
[1673669197054,0.14167089,20967.0,20964.0,0.11490843]
[1673669197817,0.14167089,20967.0,20965.0,0.03028726]
[1673669199242,0.15067089,20967.0,20965.0,0.082]
[1673669199669,0.320659,20966.0,20965.0,0.082]
[1673669200426,0.997621,20966.0,20965.0,0.082]
[1673669201191,1.18235787,20966.0,20964.0,0.00448613]
[1673669201449,0.407114,20965.0,20964.0,0.00448613]
[1673669201985,0.88401269,20965.0,20964.0,0.00448613]
[1673669202794,0.87901269,20965.0,20964.0,0.00448613]
[1673669203084,0.87901269,20965.0,20964.0,0.07948613]
[1673669203085,0.41202769,20965.0,20964.0,0.07948613]
[1673669203397,0.217114,20965.0,20964.0,0.07948613]
[1673669203908,0.207114,20965.0,20964.0,0.00448613]
[1673669204204,0.47832519,20965.0,20964.0,0.01148613]
[1673669210527,0.27121119,20965.0,20964.0,0.01148613]
[1673669217498,0.108,20965.0,20964.0,0.01148613]
[1673669217782,0.108,20965.0,20964.0,0.04034622]
[1673669218558,0.108,20965.0,20964.0,0.01148613]
[1673669219345,0.30473088,20965.0,20964.0,0.01148613]
[1673669220120,0.77592764,20965.0,20964.0,0.01148613]
[1673669220392,1.38284569,20965.0,20964.0,0.01148613]
[1673669220654,1.56593001,20965.0,20964.0,0.01148613]
[1673669221191,1.76593001,20965.0,20964.0,0.01148613]
[1673669221731,1.28872832,20965.0,20964.0,0.01148613]
[1673669224894,0.61174332,20965.0,20964.0,0.01148613]
[1673669225216,0.428659,20965.0,20964.0,0.04407837]
[1673669225418,0.108,20965.0,20964.0,0.04407837]
[1673669227240,0.108,20965.0,20964.0,0.01148613]
[1673669227762,0.108,20965.0,20964.0,0.03763714]
[1673669228291,0.108,20965.0,20964.0,0.01148613]
[1673669229333,0.28610774,20965.0,20964.0,0.01148613]
[1673669230125,0.60676674,20965.0,20964.0,0.01148613]
[1673669230645,0.80676674,20965.0,20964.0,0.01148613]
[1673669230906,1.28375174,20965.0,20964.0,0.01148613]
[1673669231410,1.08375174,20965.0,20964.0,0.01148613]
[1673669231664,1.08375174,20965.0,20961.0,0.23358263]
[1673669231937,0.56361946,20964.0,20962.0,0.00521894]
[1673669232200,0.15650546,20964.0,20962.0,0.00521894]
[1673669232470,0.108,20965.0,20962.0,0.00521894]
[1673669232742,0.108,20965.0,20964.0,0.49362006]
[1673669233000,0.83357103,20971.0,20965.0,0.2]
[1673669233001,0.2,20971.0,20965.0,0.2]
[1673669233263,0.63372097,20972.0,20965.0,0.2]
[1673669233264,0.15390876,20970.0,20966.0,0.31187649]
[1673669233545,0.15390876,20970.0,20967.0,0.0996959]
[1673669233781,0.63372097,20972.0,20967.0,0.0996959]
[1673669233782,0.16951569,20969.0,20967.0,0.0996959]
[1673669234041,0.18576632,20967.0,20965.0,0.49508804]
[1673669234326,0.18576632,20967.0,20964.0,0.50122592]
[1673669234559,0.37649227,20967.0,20964.0,0.00632788]
[1673669235095,0.18576632,20967.0,20964.0,0.00632788]
[1673669235358,0.18035708,20966.0,20964.0,0.00632788]
[1673669235645,1.615396,20969.0,20964.0,0.21850847]
[1673669235870,0.20462403,20967.0,20965.0,0.0996959]
[1673669236148,0.20462403,20967.0,20964.0,0.08313788]
[1673669236386,0.20462403,20967.0,20964.0,0.077]
[1673669236650,0.14112988,20965.0,20963.0,0.49508804]
[1673669236924,0.14112988,20965.0,20962.0,0.97852335]
[1673669237184,0.33185583,20965.0,20963.0,0.21218059]
[1673669237453,0.14112988,20965.0,20963.0,0.21218059]
[1673669237965,0.14112988,20965.0,20964.0,0.077]
[1673669238318,0.14112988,20965.0,20963.0,0.21784814]
[1673669238478,0.14112988,20965.0,20963.0,0.077]
[1673669238479,0.15112988,20965.0,20963.0,0.077]
[1673669239290,0.320659,20964.0,20963.0,0.077]
[1673669239806,0.486989,20965.0,20963.0,0.29512585]
[1673669239807,0.01,20965.0,20963.0,0.29512585]
[1673669240610,0.01,20965.0,20963.0,0.21812585]
[1673669240898,0.01,20964.0,20963.0,0.29512585]
[1673669241130,0.14129026,20966.0,20963.0,0.21812585]
[1673669241411,0.01,20965.0,20963.0,0.29512585]
[1673669241664,0.21059144,20965.0,20963.0,0.29512585]
[1673669241930,0.21059144,20965.0,20964.0,0.14150882]
[1673669242456,0.20059144,20965.0,20964.0,0.14150882]
[1673669243540,0.20059144,20965.0,20963.0,0.35963467]
[1673669243796,0.21059144,20965.0,20964.0,0.077]
[1673669244318,0.21059144,20965.0,20964.0,0.21850882]
[1673669244590,0.01,20965.0,20964.0,0.31820472]
[1673669244889,0.01,20965.0,20964.0,1.25993821]
[1673669244890,0.0001,20965.0,20964.0,1.25993821]
[1673669245116,0.2004262,20967.0,20965.0,0.2]
[1673669245414,0.1927692,20968.0,20965.0,0.63670484]
[1673669245415,0.00019,20968.0,20965.0,0.63670484]
[1673669245679,0.19177166,20966.0,20965.0,0.14148996]
[1673669245944,0.00019,20968.0,20965.0,0.14148996]
[1673669246404,0.00019,20968.0,20966.0,0.14148996]
[1673669246405,0.00019,20968.0,20966.0,0.14747441]
[1673669246936,0.005,20967.0,20966.0,0.35970936]
[1673669247461,0.15082397,20969.0,20966.0,0.33470936]
[1673669247724,0.005,20968.0,20966.0,0.33470936]
[1673669247999,0.15082397,20969.0,20966.0,0.6951804]
[1673669248260,0.15082397,20969.0,20966.0,0.2192194]
[1673669248261,0.012,20967.0,20966.0,0.2192194]
[1673669248524,0.14470803,20968.0,20965.0,0.68921795]
[1673669248783,0.14470803,20968.0,20966.0,0.001]
[1673669249571,0.14470803,20968.0,20964.0,0.97739922]
[1673669249835,0.34043398,20968.0,20964.0,0.69441929]
[1673669250141,0.35243398,20968.0,20966.0,0.001]
[1673669250397,0.15670803,20968.0,20964.0,0.69441929]
[1673669250662,0.16370803,20968.0,20964.0,0.79341929]
[1673669250910,0.15170803,20968.0,20965.0,0.00546485]
[1673669251163,0.15670803,20968.0,20966.0,0.001]
[1673669251630,0.14470803,20968.0,20965.0,0.00546485]
[1673669251631,0.19685653,20967.0,20965.0,0.00546485]
[1673669253188,0.20185653,20967.0,20965.0,0.2776998]
[1673669253432,0.005,20967.0,20965.0,0.2776998]
[1673669253686,0.005,20967.0,20966.0,0.49521488]
[1673669253991,0.005,20967.0,20966.0,0.68919695]
[1673669255299,0.14552017,20971.0,20966.0,0.68919695]
[1673669255577,0.14552017,20971.0,20967.0,0.51193085]
[1673669255849,0.14552017,20971.0,20967.0,0.0996959]
[1673669256360,0.14552017,20971.0,20967.0,0.5766339]
[1673669256646,0.14779659,20970.0,20967.0,0.5766339]
[1673669256891,0.14779659,20970.0,20967.0,0.483938]
[1673669257420,0.14779659,20970.0,20967.0,0.007]
[1673669257678,0.14779659,20970.0,20967.0,0.6252289]
[1673669258163,0.2458929,20971.0,20967.0,0.6252289]
[1673669258165,0.2458929,20971.0,20967.0,0.483939]
[1673669258433,0.1608929,20971.0,20967.0,0.5766349]
[1673669258695,0.27694731,20970.0,20967.0,0.483939]
[1673669258958,0.46767326,20970.0,20967.0,0.007]
[1673669259222,0.17488659,20969.0,20966.0,0.476961]
[1673669259500,0.35561254,20969.0,20967.0,0.007]
[1673669259763,0.16488659,20969.0,20967.0,0.0121547]
[1673669260030,0.16488659,20969.0,20967.0,0.0191547]
[1673669260285,0.16488659,20969.0,20967.0,0.0121547]
[1673669260787,0.16488659,20969.0,20966.0,0.476962]
[1673669261070,0.24988659,20969.0,20967.0,0.007]
[1673669262324,0.15658515,20968.0,20967.0,0.007]
[1673669264332,0.24158515,20968.0,20967.0,0.007]
[1673669265835,0.56224415,20968.0,20967.0,0.007]
[1673669266609,0.24158515,20968.0,20967.0,0.007]
[1673669266903,0.56224415,20968.0,20967.0,0.007]
[1673669267909,0.24158515,20968.0,20967.0,0.007]
[1673669269700,0.085,20968.0,20967.0,0.007]
[1673669269996,0.085,20968.0,20967.0,0.02060537]
[1673669270245,0.085,20968.0,20967.0,0.49754437]
[1673669270504,0.085,20968.0,20967.0,0.63883427]
[1673669272361,0.085,20968.0,20967.0,0.1482899]
[1673669272633,0.26133791,20968.0,20967.0,0.007]
[1673669274438,0.085,20968.0,20967.0,0.007]
[1673669275490,0.25025168,20968.0,20967.0,0.007]
[1673669276835,0.25025168,20968.0,20967.0,0.00674393]
[1673669276836,0.57091068,20968.0,20967.0,0.00674393]
[1673669278639,0.405659,20968.0,20967.0,0.00674393]
[1673669278900,0.882576,20968.0,20967.0,0.00674393]
[1673669279155,2.03665647,20968.0,20967.0,0.00674393]
[1673669279401,2.23384401,20968.0,20967.0,0.00674393]
[1673669279654,1.27976354,20968.0,20967.0,0.00674393]
[1673669279910,1.07976354,20968.0,20967.0,0.00674393]
[1673669280925,1.082576,20968.0,20967.0,0.00674393]
[1673669281231,1.27577045,20968.0,20967.0,0.00674393]
[1673669281465,1.27577045,20968.0,20963.0,0.29574804]
[1673669281466,0.2,20967.0,20963.0,0.29574804]
[1673669281769,0.207114,20966.0,20963.0,0.29574804]
[1673669282023,0.19072595,20966.0,20963.0,0.29574804]
[1673669282297,0.19072595,20965.0,20963.0,0.1412899]
[1673669282589,0.19072595,20965.0,20962.0,0.40907993]
[1673669282590,0.68941342,20964.0,20962.0,0.1412899]
[1673669282844,0.207114,20963.0,20962.0,0.1412899]
[1673669283106,0.36875442,20964.0,20962.0,0.1412899]
[1673669283107,0.16875442,20964.0,20962.0,0.1412899]
[1673669283358,0.16875442,20964.0,20962.0,0.15385131]
[1673669283619,0.16875442,20964.0,20963.0,0.092]
[1673669283927,0.16875442,20964.0,20962.0,0.15385131]
[1673669284178,0.320659,20963.0,20962.0,0.24585131]
[1673669284456,0.16875442,20964.0,20962.0,0.15385131]
[1673669284714,0.17675442,20964.0,20963.0,0.092]
[1673669284985,0.16875442,20964.0,20962.0,0.15385131]
[1673669285359,0.328659,20963.0,20962.0,0.24585131]
[1673669285360,0.16875442,20964.0,20962.0,0.15385131]
[1673669285614,0.17675442,20964.0,20963.0,0.092]
[1673669286633,0.48941342,20964.0,20962.0,0.63090331]
[1673669286878,0.48941342,20964.0,20962.0,0.72290331]
[1673669286879,0.17675442,20964.0,20962.0,0.72290331]
[1673669287120,0.16875442,20964.0,20962.0,0.63090331]
[1673669287378,0.17675442,20964.0,20963.0,0.092]
[1673669287885,0.008,20964.0,20963.0,0.092]
[1673669288105,0.016,20964.0,20963.0,0.092]
[1673669288360,0.008,20964.0,20962.0,0.72290331]
[1673669288593,0.016,20964.0,20963.0,0.092]
[1673669289334,0.52055399,20964.0,20963.0,0.092]
[1673669289842,0.19989499,20964.0,20963.0,0.092]
[1673669290334,0.52055399,20964.0,20963.0,0.092]
[1673669293373,1.0011201,20964.0,20963.0,0.092]
[1673669293870,0.97399342,20964.0,20963.0,0.092]
[1673669294127,1.41716869,20964.0,20963.0,0.092]
[1673669294384,1.74446869,20964.0,20963.0,0.092]
[1673669294898,1.89973693,20964.0,20963.0,0.092]
[1673669295148,1.64613693,20964.0,20963.0,0.092]
[1673669295398,1.16893524,20964.0,20963.0,0.092]
[1673669295652,1.005667,20964.0,20963.0,0.092]